bitfinex-derivatives/quotes_ETHF0:USTF0_20241024
["timestamp","ask_amount","ask_price","bid_price","bid_amount"]
[1729765880375,4.61029,2533.1,2532.7,6.41526432]
[1729765880376,3.2078,2533.1,2532.7,6.41526432]
[1729765880585,3.60291,2533.1,2533.0,2.86238432]
[1729765880773,1.2491,2533.5,2533.0,6.41526432]
[1729765880978,0.3951,2533.1,2533.0,2.86237432]
[1729765881173,0.3951,2533.2,2533.1,0.3951]
[1729765881476,3.2078,2534.6,2533.2,4.9349]
[1729765881676,1.97412,2535.0,2533.9,2.46726432]
[1729765881677,0.39496,2534.0,2533.9,2.46726432]
[1729765881880,1.40035,2534.2,2533.7,5.67506432]
[1729765881881,0.39499,2533.8,2533.7,5.67506432]
[1729765882282,0.39499,2533.8,2533.7,2.46726432]
[1729765882778,0.98753,2533.7,2533.1,3.2078]
[1729765883076,0.39512,2533.0,2532.9,1.6672]
[1729765883280,0.39512,2533.0,2532.9,0.4222]
[1729765884182,0.39514,2532.9,2532.8,2.46726432]
[1729765884381,0.39518,2532.6,2532.5,2.46726432]
[1729765887384,2.46726432,2533.9,2532.5,6.41606432]
[1729765887575,2.46726432,2533.9,2532.4,3.6203]
[1729765887576,0.3951,2533.1,2533.0,2.46726432]
[1729765889184,0.3951,2533.1,2532.8,2.46726432]
[1729765889185,3.948,2533.1,2532.8,2.46726432]
[1729765889486,0.39514,2532.9,2532.8,2.46726432]
[1729765890479,1.2178,2533.0,2532.7,3.2078]
[1729765890683,1.2178,2533.0,2532.6,2.46726432]
[1729765890684,0.39517,2532.7,2532.6,2.46726432]
[1729765891081,0.39517,2532.7,2532.6,2.86244432]
[1729765891278,0.39516,2532.8,2532.6,2.86244432]
[1729765891484,0.39516,2532.8,2532.7,2.46726432]
[1729765891678,3.2078,2533.8,2532.7,9.62306432]
[1729765891878,3.2078,2533.8,2532.5,0.8248]
[1729765891879,0.8549,2533.5,2533.0,3.2078]
[1729765892079,0.83425,2533.5,2533.4,2.46726432]
[1729765892590,0.83425,2533.5,2533.4,2.86232432]
[1729765892885,0.39505,2533.5,2533.4,2.46726432]
[1729765893276,0.98739,2534.1,2533.4,9.62226432]
[1729765893590,0.39499,2533.8,2533.7,3.2078]
[1729765894990,0.39499,2533.8,2533.7,3.60281]
[1729765895483,0.39494,2534.2,2534.1,0.39494]
[1729765895683,0.39494,2534.2,2534.1,2.46726432]
[1729765895684,0.39493,2534.2,2534.1,2.46726432]
[1729765896283,0.39496,2534.0,2533.9,2.46726432]
[1729765896879,0.39496,2534.1,2534.0,0.39496]
[1729765897090,0.39496,2534.1,2534.0,0.4221]
[1729765897382,0.39496,2534.1,2534.0,4.3685]
[1729765897790,0.39496,2534.1,2534.0,0.4221]
[1729765897982,0.39496,2534.1,2534.0,4.3685]
[1729765898691,0.39495,2534.1,2534.0,3.6299]
[1729765899492,0.39495,2534.1,2534.0,7.5763]
[1729765900582,0.4351,2534.5,2534.0,7.5763]
[1729765900783,0.98697,2535.2,2534.4,3.2078]
[1729765900987,0.39482,2534.9,2534.8,2.46726432]
[1729765901191,3.2078,2536.3,2534.8,9.68986432]
[1729765901390,3.2078,2536.0,2535.1,3.2078]
[1729765901587,3.2078,2536.0,2535.3,2.46726432]
[1729765901588,0.39475,2535.4,2535.3,2.46726432]
[1729765902393,0.39473,2535.5,2535.3,2.46726432]
[1729765902586,0.39473,2535.5,2535.0,0.8005]
[1729765902587,3.2078,2535.7,2535.2,2.46726432]
[1729765902783,0.83225,2535.4,2535.2,2.46726432]
[1729765903192,0.4375,2535.4,2535.2,2.46726432]
[1729765903391,0.39476,2535.3,2535.2,2.46726432]
[1729765905299,3.6453,2535.4,2535.2,2.46726432]
[1729765905498,4.04005,2535.4,2535.2,2.46726432]
[1729765905791,0.39476,2535.3,2535.2,2.46726432]
[1729765907090,4.33876,2535.3,2535.2,2.46726432]
[1729765907287,0.39476,2535.3,2535.2,2.46726432]
[1729765907594,4.33876,2535.3,2535.2,2.46726432]
[1729765908492,0.39476,2535.3,2535.2,2.46726432]
[1729765908798,0.39483,2534.9,2534.8,3.2078]
[1729765908994,0.39483,2534.9,2534.8,5.67506432]
[1729765909597,0.39483,2534.9,2534.8,2.46726432]
[1729765909990,4.1947,2535.4,2534.8,2.86210432]
[1729765909991,0.39481,2535.0,2534.8,2.86210432]
[1729765910195,0.39481,2535.0,2534.9,2.46726432]
[1729765917489,0.39481,2535.0,2534.9,6.80688432]
[1729765917999,0.39481,2535.0,2534.9,6.41206432]
[1729765918798,0.23971531,2535.1,2534.9,2.46726432]
[1729765918999,0.4323,2535.2,2534.9,2.46726432]
[1729765919200,0.39478,2535.2,2534.9,2.46726432]
[1729765919403,0.39479,2535.2,2535.0,0.3948]
[1729765919600,0.4105,2535.3,2534.9,2.46726432]
[1729765919797,0.4105,2535.3,2534.9,2.86208432]
[1729765919999,0.39481,2535.0,2534.9,2.86208432]
[1729765920600,0.3948,2535.1,2534.9,2.86208432]
[1729765920802,0.39481,2535.0,2534.9,2.86208432]
[1729765921199,0.39479,2535.2,2535.0,0.3948]
[1729765921402,0.39481,2535.0,2534.9,2.86208432]
[1729765921711,0.39479,2535.2,2535.1,0.39479]
[1729765923500,3.6468,2535.4,2534.9,2.87146432]
[1729765923702,0.39476,2535.3,2535.2,2.46726432]
[1729765930312,0.39475,2535.4,2535.3,0.39475]
[1729765930507,0.39475,2535.4,2535.3,3.2078]
[1729765931002,0.3997,2535.6,2535.2,2.46726432]
[1729765931204,0.3997,2535.6,2535.1,3.6267]
[1729765931205,0.39478,2535.2,2535.1,3.6267]
[1729765931410,0.39479,2535.1,2535.0,2.46726432]
[1729765931610,1.23029,2535.1,2535.0,2.46726432]
[1729765932213,0.39479,2535.1,2535.0,2.46726432]
[1729765932912,4.59432,2535.6,2535.0,2.46726432]
[1729765932913,4.59432,2535.6,2535.0,6.41206432]
[1729765933110,0.39476,2535.3,2535.2,2.86202432]
[1729765934517,0.39476,2535.4,2535.3,0.39475]
[1729765934813,0.39476,2535.4,2535.3,2.46726432]
[1729765935412,3.2078,2535.9,2535.6,0.3947]
[1729765935612,0.39465,2536.0,2535.9,2.46726432]
[1729765936508,0.3947,2535.7,2535.6,2.46726432]
[1729765937015,0.39473,2535.5,2535.4,2.46726432]
[1729765938515,0.8562,2535.6,2535.4,2.87526432]
[1729765938713,0.39473,2535.5,2535.4,2.87526432]
[1729765938910,0.81793,2535.5,2535.4,2.87526432]
[1729765939519,0.81793,2535.5,2535.4,2.46726432]
[1729765941612,0.39473,2535.5,2535.4,2.46726432]
[1729765942625,4.33873,2535.5,2535.4,2.46726432]
[1729765943511,0.39473,2535.5,2535.4,2.46726432]
[1729765944310,0.44,2535.6,2535.5,0.39473]
[1729765944311,0.83472,2535.6,2535.5,0.39473]
[1729765944521,0.83472,2535.6,2535.5,0.402]
[1729765945417,0.83472,2535.6,2535.4,3.4884592]
[1729765945418,0.39473,2535.5,2535.4,3.4884592]
[1729765945725,3.944,2535.5,2535.1,4.22899488]
[1729765945918,0.39478,2535.2,2535.1,3.2078]
[1729765946112,0.4368,2535.4,2535.1,3.2078]
[1729765946426,0.98687,2535.5,2535.1,4.62378488]
[1729765946615,0.39476,2535.3,2535.2,0.4407]
[1729765946816,0.39473,2535.5,2535.4,2.46726432]
[1729765947526,0.44,2535.6,2535.4,2.46726432]
[1729765947725,0.39473,2535.5,2535.4,2.46726432]
[1729765949326,0.8801,2535.6,2535.4,2.46726432]
[1729765949521,0.39473,2535.5,2535.4,2.46726432]
[1729765949818,0.8801,2535.6,2535.4,2.46726432]
[1729765950221,0.39473,2535.5,2535.4,2.46726432]
[1729765950420,0.8801,2535.6,2535.4,2.46726432]
[1729765950617,0.39473,2535.5,2535.4,2.46726432]
[1729765955324,0.39473,2535.5,2535.4,2.86201432]
[1729765955827,0.39473,2535.5,2535.4,2.46726432]
[1729765956016,0.39473,2535.5,2535.4,2.86201432]
[1729765956419,3.6175,2535.8,2535.4,6.41126432]
[1729765956620,0.39472,2535.6,2535.5,0.39472]
[1729765957625,3.60248,2535.8,2535.7,2.46726432]
[1729765958128,7.54648,2535.8,2535.7,2.46726432]
[1729765962329,3.60248,2535.8,2535.7,2.46726432]
[1729765967633,0.39468,2535.8,2535.7,2.46726432]
[1729765968037,3.60248,2535.8,2535.7,2.46726432]
[1729765969033,0.98681,2535.6,2535.2,4.0289074]
[1729765969231,4.0499,2535.5,2534.9,2.46726432]
[1729765969435,0.39484,2534.8,2534.7,0.4192]
[1729765969624,0.39484,2534.8,2534.7,3.28131432]
[1729765969828,0.39484,2534.8,2534.7,7.22611432]
[1729765970332,0.39484,2534.9,2534.8,0.39483]
[1729765970532,0.39484,2534.9,2534.8,3.26369432]
[1729765971230,0.98687,2535.4,2534.8,6.81366432]
[1729765971443,0.39481,2535.1,2535.0,3.6026]
[1729765971626,0.4054,2535.5,2535.0,3.2078]
[1729765971828,0.39478,2535.2,2535.1,0.4192]
[1729765972028,0.39478,2535.2,2535.1,4.75879]
[1729765972926,0.98679,2535.6,2535.1,4.364]
[1729765973131,0.39473,2535.5,2535.4,2.46726432]
[1729765974936,0.39473,2535.5,2535.4,2.86201432]
[1729765975434,0.39473,2535.5,2535.4,2.46726432]
[1729765984939,0.39473,2535.5,2535.4,2.86201432]
[1729765985541,0.39473,2535.5,2535.4,2.46726432]
[1729765986150,0.39473,2535.5,2535.4,2.86201432]
[1729765986642,0.39473,2535.5,2535.4,2.46726432]
[1729765989142,0.39473,2535.5,2535.4,2.86201432]
[1729765990053,0.39473,2535.5,2535.4,2.46726432]
[1729765991037,4.33873,2535.5,2535.4,2.46726432]
[1729765991240,0.39481,2535.0,2534.9,3.2078]
[1729765991445,0.39481,2535.0,2534.9,5.67506432]
[1729765992447,0.39481,2535.0,2534.9,3.2078]
[1729765992652,0.39481,2535.0,2534.9,5.67506432]
[1729765996646,0.39481,2535.0,2534.9,2.46726432]
[1729765999846,0.39481,2535.0,2534.9,2.86208432]
[1729766000248,0.39481,2535.0,2534.9,2.46726432]
[1729766001152,0.39481,2535.0,2534.9,2.86208432]
[1729766001545,0.39481,2535.0,2534.9,2.46726432]
[1729766002249,0.39481,2535.0,2534.9,2.86208432]
[1729766002455,0.39481,2535.0,2534.9,2.46726432]
[1729766003356,0.3948,2535.1,2534.9,2.46726432]
[1729766003552,0.39479,2535.2,2535.1,0.39478]
[1729766004358,0.39479,2535.2,2535.1,1.53241001]
[1729766004758,0.4304,2535.3,2535.1,1.13763001]
[1729766004959,0.82517,2535.3,2535.2,0.82208]
[1729766005165,0.82517,2535.3,2535.2,0.4273]
[1729766005357,0.4304,2535.3,2535.2,1.56493001]
[1729766005556,0.4304,2535.3,2535.2,1.95971001]
[1729766005957,0.82516,2535.3,2535.2,1.95971001]
[1729766006863,0.82516,2535.3,2535.2,1.56493001]
[1729766007057,0.82516,2535.3,2535.2,1.95971001]
[1729766009458,0.82516,2535.3,2535.2,3.09734002]
[1729766009657,0.82516,2535.3,2535.2,1.95971001]
[1729766010059,0.82516,2535.3,2535.0,2.70269488]
[1729766010060,0.39479,2535.1,2535.0,1.02119488]
[1729766010265,0.39479,2535.1,2535.0,1.13763001]
[1729766011452,0.39479,2535.1,2534.8,3.2078]
[1729766011453,1.41732,2535.3,2534.8,3.2078]
[1729766011766,0.39482,2534.9,2534.8,3.2078]
[1729766011956,0.39482,2534.9,2534.8,4.34543001]
[1729766012263,0.39485,2534.7,2534.6,1.02119488]
[1729766012457,0.39485,2534.7,2534.5,4.73959232]
[1729766012458,0.39487,2534.6,2534.5,3.2078]
[1729766012655,0.39487,2534.6,2534.5,5.48306002]
[1729766012963,0.39487,2534.6,2534.5,3.2078]
[1729766013153,4.34047,2534.6,2534.5,1.13763001]
[1729766013359,4.34047,2534.6,2534.2,3.2078]
[1729766013360,0.39492,2534.3,2534.2,3.2078]
[1729766014463,0.39492,2534.3,2534.2,4.34543001]
[1729766016263,0.39492,2534.3,2534.2,5.6736954]
[1729766017664,0.39492,2534.3,2534.2,2.4658954]
[1729766025774,0.81312,2534.3,2534.2,2.4658954]
[1729766029271,0.4182,2534.3,2534.0,2.4658954]
[1729766029475,0.39495,2534.1,2534.0,2.4658954]
[1729766029777,0.39498,2533.9,2533.8,2.8858954]
[1729766030365,0.79462,2534.4,2534.3,0.39492]
[1729766030576,1.97387,2535.3,2534.3,0.39492]
[1729766030577,0.98708,2534.9,2534.3,5.6736954]
[1729766030773,0.39485,2534.8,2534.7,0.39485]
[1729766030972,0.39485,2534.7,2534.6,6.0685554]
[1729766031478,0.39485,2534.7,2534.6,5.6736954]
[1729766032470,0.39489,2534.5,2534.4,0.4187]
[1729766032667,0.39496,2534.1,2534.0,2.4658954]
[1729766033267,0.39496,2534.1,2534.0,2.8608554]
[1729766034368,4.0575,2534.6,2534.0,2.4658954]
[1729766034571,0.39494,2534.2,2534.1,0.39494]
[1729766034771,0.39494,2534.2,2534.1,2.4658954]
[1729766035170,0.39494,2534.2,2534.1,2.8608454]
[1729766035572,0.39494,2534.2,2534.1,2.4658954]
[1729766036975,0.39494,2534.2,2534.1,2.8608454]
[1729766038081,0.39494,2534.2,2534.1,2.4658954]
[1729766041682,0.39494,2534.2,2534.1,2.8608454]
[1729766042186,0.39494,2534.2,2534.1,6.8072454]
[1729766042374,0.39489,2534.5,2534.4,0.39489]
[1729766042684,0.39489,2534.5,2534.4,2.8607954]
[1729766043083,0.39489,2534.5,2534.4,4.1412954]
[1729766045883,0.39488,2534.6,2534.5,0.39488]
[1729766046581,0.39489,2534.5,2534.4,4.1412854]
[1729766047282,0.39489,2534.5,2534.4,3.7463954]
[1729766047977,0.39489,2534.5,2534.4,3.3071954]
[1729766048379,0.39489,2534.5,2534.4,3.7020954]
[1729766049875,0.39489,2534.5,2534.4,0.8413]
[1729766050081,0.823,2534.8,2534.0,5.0147431]
[1729766050082,0.39495,2534.1,2534.0,5.0147431]
[1729766050281,0.39495,2534.1,2534.0,4.4228]
[1729766050479,0.39495,2534.1,2534.0,4.8274]
[1729766050683,0.39495,2534.1,2534.0,3.6124]
[1729766051173,0.39495,2534.1,2534.0,3.2078]
[1729766052485,0.39498,2533.9,2533.8,0.4178]
[1729766054779,0.98734,2534.2,2533.7,5.6736954]
[1729766054982,0.98734,2534.2,2533.7,3.2078]
[1729766054983,0.39499,2533.8,2533.7,3.2078]
[1729766057687,0.98741,2534.1,2533.5,1.93971658]
[1729766057688,0.39503,2533.6,2533.5,1.93971658]
[1729766057880,0.98741,2534.1,2533.6,0.39502]
[1729766057881,0.39502,2533.7,2533.6,0.39502]
[1729766058084,3.2078,2534.2,2533.6,0.39502]
[1729766058085,3.2078,2534.2,2533.6,2.9063954]
[1729766058280,0.39496,2534.1,2534.0,2.8608554]
[1729766058482,0.39496,2534.1,2534.0,2.4658954]
[1729766059088,0.39496,2534.1,2534.0,2.8608554]
[1729766059592,3.2078,2534.7,2534.0,6.4122954]
[1729766059900,0.39487,2534.6,2534.5,5.6736954]
[1729766060882,1.2446,2534.9,2534.5,5.6736954]
[1729766061082,0.39486,2534.7,2534.6,0.39486]
[1729766062589,0.826,2534.9,2534.5,5.6736954]
[1729766062790,0.39486,2534.7,2534.6,0.39487]
[1729766064692,0.39484,2534.8,2534.7,0.39485]
[1729766064891,0.39486,2534.7,2534.6,0.39486]
[1729766065790,4.19479,2535.1,2534.8,0.39484]
[1729766065791,0.39483,2534.9,2534.8,0.39484]
[1729766065997,0.39483,2534.9,2534.8,2.4658954]
[1729766066297,0.39483,2534.9,2534.8,2.8607354]
[1729766066499,0.39483,2534.9,2534.8,2.4658954]
[1729766068896,0.39484,2534.8,2534.7,4.3718]
[1729766069292,0.39484,2534.8,2534.7,4.76665]
[1729766069493,0.39484,2534.8,2534.7,3.60265]
[1729766069689,0.39484,2534.8,2534.7,4.76665]
[1729766070799,0.39484,2534.8,2534.7,3.60265]
[1729766070991,0.39484,2534.8,2534.7,4.3718]
[1729766071699,0.39484,2534.8,2534.7,1.164]
[1729766072003,0.39484,2534.8,2534.7,4.76665]
[1729766072796,0.8716,2535.2,2534.7,4.3718]
[1729766072999,0.39482,2534.9,2534.8,2.8607254]
[1729766073205,0.4369,2535.2,2534.8,2.4658954]
[1729766073499,1.40467,2535.5,2535.0,3.60261]
[1729766073500,0.3948,2535.1,2535.0,3.60261]
[1729766075005,0.3948,2535.1,2535.0,3.2078]
[1729766075202,0.39482,2534.9,2534.7,3.2078]
[1729766075406,0.3948,2535.1,2534.7,4.8064]
[1729766075407,0.39484,2534.8,2534.7,4.8064]
[1729766075701,0.39484,2534.8,2534.7,3.6424]
[1729766076098,0.39484,2534.8,2534.7,3.2078]
[1729766077201,1.253,2535.0,2534.6,0.38195394]
[1729766077202,0.39485,2534.7,2534.6,0.38195394]
[1729766077399,0.39485,2534.7,2534.4,4.8351954]
[1729766077400,0.39489,2534.5,2534.4,4.0336954]
[1729766078094,0.39489,2534.5,2534.4,2.8696954]
[1729766079507,0.39489,2534.5,2534.3,3.6079]
[1729766079508,0.3949,2534.4,2534.3,3.59272988]
[1729766080510,0.3949,2534.4,2534.3,3.2078]
[1729766081411,4.3405,2534.4,2534.3,3.2078]
[1729766082122,4.3405,2534.4,2534.0,3.6404]
[1729766082123,0.39495,2534.1,2534.0,3.6404]
[1729766082320,0.39495,2534.1,2534.0,3.2078]
[1729766082916,0.39499,2533.8,2533.7,3.2078]
[1729766083114,4.1951,2534.3,2533.5,2.4658954]
[1729766083115,0.39502,2533.7,2533.6,3.2078]
[1729766084022,0.39502,2533.7,2533.5,2.8609354]
[1729766084023,0.39503,2533.6,2533.5,2.4658954]
[1729766084219,0.39504,2533.5,2533.4,1.5705]
[1729766084415,0.39504,2533.5,2533.4,1.96556]
[1729766084621,0.39504,2533.5,2533.4,1.5705]
[1729766084823,0.39504,2533.5,2533.4,1.96556]
[1729766085018,0.39504,2533.5,2533.4,0.4065]
[1729766089024,0.98751,2533.8,2533.3,5.6736954]
[1729766089328,0.39506,2533.4,2533.3,5.6736954]
[1729766089527,0.39506,2533.4,2533.3,6.0687654]
[1729766089826,0.39506,2533.4,2533.3,5.6736954]
[1729766090121,0.39506,2533.4,2533.3,6.0687654]
[1729766090620,0.39505,2533.5,2533.3,6.0687654]
[1729766090925,0.39506,2533.4,2533.3,6.0687654]
[1729766091724,0.39505,2533.5,2533.4,0.39506]
[1729766091925,0.395,2533.8,2533.7,0.39501]
[1729766092325,0.39501,2533.7,2533.6,2.8609154]
[1729766092626,0.395,2533.8,2533.7,0.4174]
[1729766092822,4.444,2534.0,2533.7,0.4174]
[1729766092823,0.39499,2533.9,2533.7,0.8124]
[1729766093325,0.4272,2534.0,2533.7,0.4174]
[1729766093531,0.39499,2533.8,2533.7,0.81241]
[1729766093719,0.4272,2534.0,2533.7,0.4174]
[1729766093918,0.39498,2533.9,2533.8,0.39499]
[1729766094126,0.39498,2533.9,2533.7,0.4174]
[1729766094427,0.39498,2533.9,2533.7,0.8124]
[1729766094626,0.39498,2533.9,2533.7,0.4174]
[1729766094825,0.39498,2533.9,2533.8,0.39499]
[1729766096128,0.4272,2534.0,2533.7,3.6252]
[1729766096129,0.39499,2533.8,2533.7,3.6252]
[1729766096427,0.39499,2533.8,2533.7,4.02021]
[1729766099228,0.39499,2533.8,2533.7,3.6252]
[1729766100421,0.39499,2533.8,2533.7,3.2078]
[1729766101832,0.39503,2533.6,2533.5,0.3985]
[1729766102331,0.4102,2533.7,2533.4,3.2078]
[1729766102536,0.83314,2533.5,2533.4,3.2078]
[1729766103133,0.4381,2533.5,2533.2,2.29289655]
[1729766103434,0.83314,2533.5,2533.4,3.2078]
[1729766104131,0.98766,2533.4,2532.8,4.22777094]
[1729766104326,0.39518,2532.6,2532.5,3.2078]
[1729766104526,0.98781,2533.0,2532.5,3.2078]
[1729766104726,0.39518,2532.6,2532.5,3.2078]
[1729766105549,0.39518,2532.6,2532.5,3.603]
[1729766106438,0.4141,2532.9,2532.5,3.603]
[1729766106439,0.39517,2532.7,2532.5,3.603]
[1729766106834,0.39518,2532.6,2532.5,3.2078]
[1729766107034,0.39518,2532.6,2532.5,3.603]
[1729766107328,0.4141,2532.9,2532.6,0.39518]
[1729766107329,0.39516,2532.8,2532.6,0.39518]
[1729766107535,0.39516,2532.8,2532.7,0.39517]
[1729766107935,0.4141,2532.9,2532.5,3.2078]
[1729766108130,0.39515,2532.8,2532.6,0.39518]
[1729766108440,0.39517,2532.7,2532.5,3.2078]
[1729766108639,0.39517,2532.7,2532.5,3.60299]
[1729766108940,0.39517,2532.7,2532.6,0.39518]
[1729766109638,0.4141,2532.9,2532.5,3.2078]
[1729766109639,0.39518,2532.6,2532.5,3.2078]
[1729766109834,0.39518,2532.6,2532.5,3.603]
[1729766110043,0.39518,2532.6,2532.5,3.2078]
[1729766110926,4.34398,2532.6,2532.5,3.2078]
[1729766113535,0.4141,2532.9,2532.5,3.2078]
[1729766113841,0.39516,2532.8,2532.7,0.39516]
[1729766114132,0.4141,2532.9,2532.7,0.39517]
[1729766114133,0.80924,2532.9,2532.7,0.39517]
[1729766114341,0.411,2533.2,2532.6,3.9459954]
[1729766114533,1.39874,2533.2,2532.6,4.3411654]
[1729766114735,3.6462,2533.1,2532.6,4.3411654]
[1729766114934,3.6462,2533.1,2532.6,3.9459954]
[1729766115136,0.39514,2532.9,2532.8,0.39514]
[1729766116443,3.2078,2533.1,2532.6,2.8859954]
[1729766116641,0.39516,2532.8,2532.7,1.45516]
[1729766117335,0.4091,2533.0,2532.8,0.39515]
[1729766117336,0.83504,2532.9,2532.8,0.39515]
[1729766118041,0.4399,2532.9,2532.6,2.8859954]
[1729766118243,0.39516,2532.8,2532.7,0.39515]
[1729766118744,0.39517,2532.7,2532.6,3.2811654]
[1729766119741,0.39517,2532.7,2532.6,0.4201]
[1729766121345,0.39517,2532.7,2532.6,3.6279]
[1729766122147,0.4399,2532.9,2532.4,3.2727054]
[1729766122346,1.42776,2532.9,2532.6,3.2078]
[1729766122549,0.39517,2532.7,2532.6,3.2078]
[1729766123946,0.4201,2532.8,2532.6,3.2078]
[1729766124146,0.39517,2532.7,2532.6,3.2078]
[1729766124538,3.9488,2532.7,2532.4,0.4103]
[1729766124747,0.3952,2532.5,2532.4,2.8761954]
[1729766128353,0.3952,2532.5,2532.4,3.2714054]
[1729766129149,0.39517,2532.7,2532.6,0.39517]
[1729766129357,0.39517,2532.7,2532.6,6.0688654]
[1729766130055,0.4399,2532.9,2532.6,5.6736954]
[1729766130356,0.39517,2532.7,2532.6,6.0688654]
[1729766133353,0.39515,2532.9,2532.8,0.39515]
[1729766133653,40.8,2534.0,2533.1,0.39509]
[1729766133654,0.98762,2533.5,2533.1,0.39509]
[1729766133851,4.0489,2533.7,2533.2,0.4139]
[1729766134047,0.39507,2533.4,2533.3,0.39507]
[1729766134849,0.39507,2533.4,2533.2,0.4139]
[1729766134850,0.39507,2533.3,2533.2,0.4139]
[1729766135159,0.39507,2533.3,2532.4,1.53233856]
[1729766135160,0.39516,2532.8,2532.7,0.39515]
[1729766135458,0.39515,2532.8,2532.7,0.80906]
[1729766137055,0.39515,2532.8,2532.7,0.4139]
[1729766140266,0.39518,2532.6,2532.5,3.6392]
[1729766140561,0.39518,2532.6,2532.5,4.0433]
[1729766141061,0.39518,2532.6,2532.5,4.4385]
[1729766142152,0.39518,2532.6,2532.5,4.0433]
[1729766143255,0.39518,2532.6,2532.5,4.4385]
[1729766143651,0.39518,2532.6,2532.5,1.2307]
[1729766146061,0.39518,2532.6,2532.5,0.8355]
[1729766146254,0.39518,2532.6,2532.5,4.0433]
[1729766146857,0.39518,2532.6,2532.5,4.4385]
[1729766148261,1.42237,2532.9,2532.6,0.39518]
[1729766148262,0.39517,2532.7,2532.6,0.39518]
[1729766148453,0.39516,2532.8,2532.7,0.39516]
[1729766148654,0.39517,2532.7,2532.6,0.39517]
[1729766148860,0.4345,2532.9,2532.5,4.0433]
[1729766149058,0.39516,2532.8,2532.7,0.39516]
[1729766149258,0.4345,2532.9,2532.5,4.0433]
[1729766149459,0.39518,2532.7,2532.6,0.39518]
[1729766150463,0.39518,2532.6,2532.5,5.46108567]
[1729766150655,0.39518,2532.6,2532.5,7.38375052]
[1729766151057,0.4345,2532.9,2532.5,6.98857052]
[1729766151256,0.39517,2532.7,2532.6,0.39517]
[1729766151762,0.39518,2532.6,2532.5,5.84244227]
[1729766151964,0.39518,2532.6,2532.5,7.89507551]
[1729766152765,0.39517,2532.7,2532.6,0.39517]
[1729766152965,0.39517,2532.7,2532.6,1.42238059]
[1729766153469,0.39517,2532.7,2532.6,1.02721059]
[1729766153665,4.34397,2532.7,2532.6,1.02721059]
[1729766154067,4.34397,2532.7,2532.5,4.74170851]
[1729766154068,3.9488,2532.7,2532.5,1.02738781]
[1729766154260,4.3738,2532.6,2532.4,1.02738781]
[1729766154568,4.3738,2532.6,2532.3,1.02738781]
[1729766154569,0.39521,2532.4,2532.3,1.02738781]
[1729766154963,0.39523,2532.3,2532.2,4.23518781]
[1729766157170,0.39523,2532.3,2532.2,3.60304]
[1729766157368,0.39523,2532.3,2532.2,7.09632321]
[1729766158267,0.39523,2532.3,2532.2,6.70108321]
[1729766158467,0.39523,2532.3,2532.2,5.6736954]
[1729766158772,0.39523,2532.3,2532.2,3.2078]
[1729766159362,3.9496,2532.2,2531.6,1.45440344]
[1729766159665,4.735,2532.5,2531.0,3.06781703]
[1729766159666,0.39535,2531.5,2531.4,0.4118]
[1729766161865,0.39538,2531.3,2531.2,0.4395]
[1729766162069,0.39538,2531.3,2531.1,0.4283]
[1729766162070,0.39544,2531.2,2531.1,0.3992]
[1729766163673,0.6298,2531.7,2531.1,0.3992]
[1729766163674,0.39544,2531.3,2531.1,0.3992]
[1729766163876,0.39542,2531.3,2531.1,0.3992]
[1729766164281,3.2078,2531.4,2531.1,0.3992]
[1729766164474,0.39544,2531.2,2531.1,0.3992]
[1729766164875,3.2078,2531.4,2531.1,0.3992]
[1729766165085,0.39543,2531.3,2531.2,2.4658954]
[1729766165785,3.60322,2531.4,2531.2,2.4658954]
[1729766165975,3.2078,2531.4,2531.2,2.4658954]
[1729766166181,3.2078,2531.4,2531.3,0.4144]
[1729766166884,3.60321,2531.4,2531.3,0.4144]
[1729766168581,0.4231,2531.6,2531.3,0.4144]
[1729766168784,0.39541,2531.5,2531.3,0.80982]
[1729766169085,0.39541,2531.5,2531.4,0.4228]
[1729766175488,3.60321,2531.5,2531.4,0.4228]
[1729766176891,0.39541,2531.5,2531.4,0.4228]
[1729766182395,3.60321,2531.5,2531.4,0.4228]
[1729766182894,0.39544,2531.2,2531.1,0.8305]
[1729766183089,3.60324,2531.2,2531.1,0.8305]
[1729766183891,7.55364,2531.2,2531.1,0.3992]
[1729766184095,7.1582,2531.2,2530.6,0.8713]
[1729766184294,0.39552,2530.7,2530.6,1.66503]
[1729766184805,0.98867,2531.1,2530.6,1.2695]
[1729766184989,0.98867,2531.1,2530.7,0.39551]
[1729766184990,0.39551,2530.8,2530.7,0.39551]
[1729766185195,0.39552,2530.7,2530.6,1.66503]
[1729766186702,0.39552,2530.7,2530.6,1.2695]
[1729766187498,0.39552,2530.7,2530.6,0.8295]
[1729766188410,0.39552,2530.7,2530.6,0.3982]
[1729766190811,0.39556,2530.4,2530.3,0.83497]
[1729766191003,0.39556,2530.4,2530.3,1.64110098]
[1729766191802,0.39556,2530.4,2530.3,1.24553098]
[1729766192002,0.39556,2530.4,2529.9,0.39564]
[1729766192003,0.39564,2530.0,2529.9,0.39564]
[1729766192205,0.39563,2530.0,2529.9,0.39563]
[1729766192404,3.6466,2530.3,2529.8,0.433]
[1729766192610,0.39562,2530.1,2530.0,0.39562]
[1729766193308,3.2078,2530.3,2530.2,0.3956]
[1729766197114,0.3956,2530.2,2530.1,0.3956]
[1729766197418,3.60339,2530.3,2530.2,0.3956]
[1729766199013,0.39559,2530.3,2530.2,0.3956]
[1729766199517,3.2078,2530.4,2529.9,4.9635054]
[1729766199812,0.39559,2530.3,2530.2,0.39558]
[1729766205520,0.39559,2530.3,2530.2,0.77097925]
[1729766207921,3.2078,2530.4,2530.2,0.37539925]
[1729766208121,3.2078,2530.4,2530.3,0.8704]
[1729766208122,0.39558,2530.4,2530.3,0.8704]
[1729766209421,0.39558,2530.4,2530.3,1.26598]
[1729766210412,0.39558,2530.4,2530.3,2.40589749]